bitfinex-derivatives/quotes_BTCF0:USTF0_20251228
["timestamp","ask_amount","ask_price","bid_price","bid_amount"]
[1766964686872,0.1031317,87700.0,87680.0,0.097]
[1766964687074,0.1031317,87700.0,87680.0,0.2001317]
[1766964687276,0.05716,87704.0,87680.0,0.097]
[1766964687484,0.1031317,87700.0,87680.0,0.097]
[1766964687792,0.10330271,87700.0,87680.0,0.2001317]
[1766964687982,0.10330271,87700.0,87680.0,0.097]
[1766964688183,0.10330271,87700.0,87681.0,0.0114128]
[1766964688391,0.10330271,87700.0,87684.0,0.0114125]
[1766964688682,0.00017101,87700.0,87684.0,0.0114125]
[1766964688986,0.00017101,87700.0,87680.0,0.2001317]
[1766964689180,0.10330271,87700.0,87680.0,0.2001317]
[1766964689585,0.10330271,87700.0,87675.0,0.15416]
[1766964691383,1e-08,87700.0,87695.0,0.011411]
[1766964691885,0.1031317,87720.0,87693.0,0.05716]
[1766964692082,0.1192,87719.0,87704.0,0.0114099]
[1766964692385,0.1192,87719.0,87701.0,0.0114102]
[1766964692796,0.11937101,87719.0,87701.0,0.01158121]
[1766964693587,0.11937101,87719.0,87702.0,0.0114101]
[1766964693782,0.05716,87718.0,87702.0,0.0114101]
[1766964695484,0.05716,87718.0,87701.0,0.00017101]
[1766964695788,1e-08,87719.0,87709.0,0.1145409]
[1766964698984,1e-08,87719.0,87712.0,0.0114089]
[1766964699486,1e-08,87719.0,87709.0,0.1031317]
[1766964699788,0.05716,87732.0,87720.0,0.0114078]
[1766964699976,0.02415582,87731.0,87710.0,0.2572917]
[1766964700176,0.02415582,87730.0,87710.0,0.2572917]
[1766964700476,0.097,87738.0,87711.0,0.0114089]
[1766964700477,0.02415582,87729.0,87711.0,0.0114089]
[1766964700680,0.00017101,87729.0,87717.0,0.0114082]
[1766964700884,0.00017101,87729.0,87713.0,0.0114086]
[1766964703294,0.00017101,87729.0,87711.0,0.00017101]
[1766964705196,0.00017101,87729.0,87712.0,0.0114089]
[1766964705687,0.00017101,87729.0,87715.0,0.0114084]
[1766964705893,0.00017101,87729.0,87711.0,0.01158001]
[1766964706081,0.00017101,87729.0,87711.0,0.00017101]
[1766964706082,0.1031317,87721.0,87711.0,0.00017101]
[1766964706386,0.0114069,87728.0,87711.0,0.00017101]
[1766964706587,0.02416316,87727.0,87711.0,0.00017101]
[1766964706783,0.00228018,87713.0,87711.0,0.00017101]
[1766964706984,0.0114069,87728.0,87711.0,0.00017101]
[1766964707291,0.02416316,87727.0,87711.0,0.00017101]
[1766964707492,0.02416316,87726.0,87711.0,0.00017101]
[1766964707692,0.1084069,87728.0,87711.0,0.00017101]
[1766964707893,0.02416394,87727.0,87711.0,0.00017101]
[1766964708194,0.02416394,87726.0,87711.0,0.00017101]
[1766964708391,0.1084069,87728.0,87711.0,0.00017101]
[1766964708593,0.02416468,87727.0,87711.0,0.00017101]
[1766964708793,0.02416468,87726.0,87711.0,0.00017101]
[1766964709086,0.097,87728.0,87711.0,0.00017101]
[1766964709294,0.02416546,87727.0,87711.0,0.00017101]
[1766964709490,0.097,87728.0,87711.0,0.00017101]
[1766964709491,0.02416546,87726.0,87711.0,0.00017101]
[1766964709692,0.097,87728.0,87711.0,0.00017101]
[1766964709693,0.02416527,87725.0,87711.0,0.00017101]
[1766964709894,0.02416527,87724.0,87711.0,0.00017101]
[1766964710196,0.097,87728.0,87711.0,0.00017101]
[1766964710399,0.0241663,87727.0,87711.0,0.00017101]
[1766964710593,0.0241663,87726.0,87711.0,0.00017101]
[1766964710789,0.0241663,87725.0,87711.0,0.00017101]
[1766964711106,0.0241663,87724.0,87711.0,0.00017101]
[1766964711395,0.097,87728.0,87711.0,0.00017101]
[1766964711596,0.02416586,87727.0,87711.0,0.00017101]
[1766964711796,0.02416586,87726.0,87711.0,0.00017101]
[1766964711996,0.02416586,87725.0,87711.0,0.00017101]
[1766964712293,0.02416586,87724.0,87711.0,0.00017101]
[1766964712495,0.097,87728.0,87711.0,0.00017101]
[1766964712696,0.02416543,87727.0,87711.0,0.00017101]
[1766964712886,0.02416543,87726.0,87711.0,0.00017101]
[1766964713087,0.02416543,87725.0,87711.0,0.01158001]
[1766964713287,0.097,87728.0,87711.0,0.00017101]
[1766964713487,0.02416488,87727.0,87711.0,0.00017101]
[1766964713693,0.02416488,87726.0,87711.0,0.00017101]
[1766964713895,0.02416488,87725.0,87711.0,0.00017101]
[1766964714094,0.097,87728.0,87711.0,0.00017101]
[1766964714308,0.02416447,87727.0,87711.0,0.00017101]
[1766964714493,0.02416447,87726.0,87711.0,0.00017101]
[1766964714701,0.02416447,87725.0,87711.0,0.00017101]
[1766964715001,0.097,87728.0,87711.0,0.00017101]
[1766964715297,0.02416447,87727.0,87711.0,0.00017101]
[1766964715597,0.02416447,87726.0,87711.0,0.00017101]
[1766964715796,0.02416447,87725.0,87711.0,0.00017101]
[1766964715997,0.097,87728.0,87711.0,0.00017101]
[1766964716202,0.02416455,87727.0,87711.0,0.00017101]
[1766964716400,0.02416455,87726.0,87711.0,0.00017101]
[1766964716588,0.02416455,87725.0,87711.0,0.00017101]
[1766964716788,0.097,87728.0,87711.0,0.00017101]
[1766964716996,0.02416491,87727.0,87711.0,0.00017101]
[1766964717198,0.02416491,87726.0,87711.0,0.00017101]
[1766964717390,0.02416491,87725.0,87711.0,0.00017101]
[1766964717601,0.097,87728.0,87711.0,0.00017101]
[1766964717898,0.02416792,87727.0,87711.0,0.00017101]
[1766964718191,0.02416792,87726.0,87711.0,0.00017101]
[1766964718398,0.02416792,87725.0,87711.0,0.00017101]
[1766964718591,0.02416792,87724.0,87711.0,0.00017101]
[1766964718799,0.00017101,87729.0,87711.0,0.00017101]
[1766964718995,0.02417382,87728.0,87711.0,0.00017101]
[1766964719194,0.02417382,87727.0,87711.0,0.00017101]
[1766964719395,0.02417382,87726.0,87711.0,0.00017101]
[1766964719590,0.02417382,87725.0,87711.0,0.00017101]
[1766964719790,0.02417382,87724.0,87711.0,0.00017101]
[1766964719991,0.00017101,87729.0,87711.0,0.00017101]
[1766964720299,0.02418025,87728.0,87711.0,0.00017101]
[1766964720498,0.02418025,87727.0,87711.0,0.00017101]
[1766964720701,0.02418025,87726.0,87711.0,0.00017101]
[1766964720899,0.02418025,87725.0,87711.0,0.00017101]
[1766964721094,0.00017101,87729.0,87711.0,0.00017101]
[1766964721303,0.02420264,87728.0,87711.0,0.00017101]
[1766964721496,0.02420264,87727.0,87711.0,0.00017101]
[1766964721799,0.02420264,87726.0,87711.0,0.00017101]
[1766964721992,0.02420264,87725.0,87711.0,0.00017101]
[1766964722193,0.02420264,87724.0,87711.0,0.00017101]
[1766964722390,0.00017101,87729.0,87714.0,0.1031317]
[1766964722702,5e-08,87728.0,87721.0,0.0114076]
[1766964722903,0.00017101,87729.0,87721.0,0.0114076]
[1766964723305,0.01311023,87745.0,87722.0,0.05716]
[1766964723494,0.1602917,87750.0,87733.0,0.0114061]
[1766964724095,0.05716,87750.0,87733.0,0.0114061]
[1766964724295,0.00017101,87747.0,87730.0,0.1031317]
[1766964725496,0.00017101,87747.0,87731.0,0.0114064]
[1766964725897,0.00017101,87747.0,87730.0,0.1031317]
[1766964726297,0.00017101,87747.0,87730.0,0.1145382]
[1766964729399,0.1031317,87740.0,87729.0,0.05733101]
[1766964729607,0.3604234,87740.0,87700.0,0.1031317]
[1766964729805,0.1031317,87730.0,87709.0,0.0114092]
[1766964730005,0.1031317,87730.0,87710.0,0.05716]
[1766964730799,0.00017101,87729.0,87711.0,0.00017101]
[1766964731311,0.00017101,87729.0,87711.0,0.01157991]
[1766964734117,0.00017101,87729.0,87711.0,0.00017101]
[1766964734620,0.02399675,87728.0,87711.0,0.00017101]
[1766964734826,0.00017101,87729.0,87711.0,0.00017101]
[1766964734827,0.02399675,87727.0,87711.0,0.00017101]
[1766964735025,0.02399675,87726.0,87711.0,0.00017101]
[1766964735222,0.1031317,87721.0,87711.0,0.00017101]
[1766964735525,0.03540356,87720.0,87703.0,0.05716]
[1766964735715,0.02399556,87719.0,87703.0,0.05716]
[1766964736027,0.1031317,87721.0,87703.0,0.05716]
[1766964736218,0.0239932,87720.0,87703.0,0.05716]
[1766964736523,0.0239932,87719.0,87712.0,0.0114088]
[1766964736730,0.00017101,87729.0,87712.0,0.0114088]
[1766964736731,0.0572,87727.0,87712.0,0.0114088]
[1766964736930,0.0572,87727.0,87710.0,0.1031317]
[1766964737426,0.0572,87727.0,87711.0,0.0114089]
[1766964738021,0.0572,87727.0,87710.0,0.1031317]
[1766964738223,0.00017101,87729.0,87717.0,0.1145399]
[1766964738921,0.00017101,87729.0,87717.0,0.0114082]
[1766964740027,0.00017101,87729.0,87719.0,0.1145395]
[1766964741231,0.00017101,87729.0,87719.0,0.1031317]
[1766964743636,0.0572,87734.0,87719.0,0.1031317]
[1766964744634,0.0572,87734.0,87718.0,0.0114081]
[1766964745532,0.0572,87741.0,87729.0,0.0114065]
[1766964745918,0.0572,87741.0,87717.0,0.0572]
[1766964745919,0.10305995,87740.0,87717.0,0.0572]
[1766964746125,0.0114057,87737.0,87711.0,0.0114089]
[1766964746326,0.0114057,87737.0,87713.0,0.0114087]
[1766964746526,0.00017101,87734.0,87716.0,0.00017101]
[1766964747535,0.0114064,87731.0,87714.0,0.0572]
[1766964747925,0.10305995,87730.0,87708.0,0.0114093]
[1766964748125,0.0114067,87729.0,87702.0,0.0514]
[1766964748330,0.0572,87732.0,87706.0,0.0114095]
[1766964748633,0.023932,87731.0,87710.0,0.00017101]
[1766964748826,0.023932,87730.0,87710.0,0.00017101]
[1766964749027,0.023932,87729.0,87710.0,0.00017101]
[1766964749226,0.023932,87728.0,87710.0,0.00017101]
[1766964749425,0.0114074,87724.0,87710.0,0.00017101]
[1766964749727,0.081132,87723.0,87705.0,0.0114097]
[1766964749931,0.023932,87722.0,87705.0,0.0114097]
[1766964750119,0.023932,87721.0,87705.0,0.0114097]
[1766964750320,0.023932,87720.0,87705.0,0.0114097]
[1766964750524,0.0572,87723.0,87704.0,0.00017101]
[1766964750732,0.0572,87731.0,87718.0,0.0114081]
[1766964752056,0.00017101,87734.0,87713.0,0.1542]
[1766964752335,0.097,87741.0,87714.0,0.097]
[1766964752737,0.097,87741.0,87723.0,0.0114074]
[1766964753141,0.09717101,87741.0,87723.0,0.01157841]
[1766964753437,0.09717101,87741.0,87726.0,0.011407]
[1766964755241,0.09717101,87741.0,87729.0,0.0114067]
[1766964755433,0.08168919,87765.0,87723.0,0.00017101]
[1766964755434,0.097,87753.0,87730.0,0.10305995]
[1766964755740,0.097,87753.0,87735.0,0.0114059]
[1766964755741,0.1542,87753.0,87735.0,0.0114059]
[1766964755940,0.1542,87753.0,87724.0,0.1542]
[1766964756540,0.00017101,87747.0,87738.0,0.0114055]
[1766964757231,1e-08,87747.0,87741.0,0.0114051]
[1766964758828,1e-08,87747.0,87737.0,0.0114056]
[1766964760446,1e-08,87747.0,87740.0,0.0114052]
[1766964761351,1e-08,87747.0,87743.0,0.0114048]
[1766964763040,1e-08,87747.0,87739.0,0.0114053]
[1766964764049,1e-08,87747.0,87736.0,0.097]
[1766964766250,1e-08,87747.0,87741.0,0.011405]
[1766964771046,1e-08,87747.0,87742.0,0.05716]
[1766964772548,1e-08,87747.0,87743.0,0.0114048]
[1766964772750,0.00502716,87771.0,87745.0,0.0114045]
[1766964772751,0.09696,87764.0,87745.0,0.0114045]
[1766964773455,0.1083622,87764.0,87742.0,0.0685649]
[1766964773654,0.1083622,87764.0,87744.0,0.00017101]
[1766964773655,0.00017101,87762.0,87744.0,0.00017101]
[1766964775940,0.00017101,87762.0,87744.0,0.01157561]
[1766964776456,0.00017101,87762.0,87747.0,0.0114042]
[1766964776653,0.0114015,87770.0,87750.0,0.0114039]
[1766964776854,0.0114015,87770.0,87751.0,0.05716]
[1766964777744,0.00017101,87769.0,87751.0,0.05716]
[1766964779756,0.0114006,87776.0,87751.0,0.05716]
[1766964779757,0.09696,87779.0,87761.0,0.0114024]
[1766964779959,0.0113998,87783.0,87761.0,0.0114024]
[1766964779960,0.09696,87782.0,87761.0,0.0114024]
[1766964780147,0.0114,87781.0,87761.0,0.0114024]
[1766964780350,0.0114,87781.0,87760.0,0.05716]
[1766964780849,0.00011298,87779.0,87762.0,0.00017091]
[1766964782460,0.00011298,87779.0,87766.0,0.0114017]
[1766964782662,0.0113987,87791.0,87762.0,0.00017091]
[1766964782663,0.06151833,87793.0,87769.0,0.0114014]
[1766964782856,0.15412,87792.0,87772.0,0.011401]
[1766964783654,0.15412,87792.0,87771.0,0.05716]
[1766964784761,0.0113986,87791.0,87771.0,0.05716]
[1766964784970,0.15412,87792.0,87771.0,0.05716]
[1766964785761,0.15412,87792.0,87772.0,0.011401]
[1766964786853,0.1655185,87792.0,87772.0,0.011401]
[1766964787359,0.0113989,87789.0,87771.0,0.05716]
[1766964787866,0.0113993,87786.0,87772.0,0.15412]
[1766964788058,0.0113989,87790.0,87772.0,0.15412]
[1766964790663,0.0114002,87779.0,87762.0,0.00017091]
[1766964790869,0.0114002,87779.0,87762.0,0.05733091]
[1766964791773,0.0114009,87774.0,87752.0,0.09692]
[1766964792062,0.0114011,87772.0,87751.0,0.05716]
[1766964792368,0.0685611,87772.0,87751.0,0.05716]
[1766964792959,0.00017091,87770.0,87753.0,0.00017091]
[1766964793859,0.00017091,87770.0,87754.0,0.0114033]
[1766964796472,0.00017091,87770.0,87753.0,0.00017091]
[1766964797364,0.01157221,87770.0,87753.0,0.00017091]
[1766964798767,0.00017091,87770.0,87753.0,0.00017091]
[1766964798970,0.0114008,87774.0,87753.0,0.00017091]
[1766964799167,0.0114012,87772.0,87753.0,0.00017091]
[1766964803760,0.0114012,87772.0,87754.0,0.0114034]
[1766964804462,0.05716,87778.0,87760.0,0.10295009]
[1766964804668,0.05716,87778.0,87768.0,0.10295009]
[1766964804864,0.0113998,87782.0,87761.0,0.0685625]
[1766964805085,0.0114002,87779.0,87761.0,0.05716]
[1766964807070,0.10295009,87780.0,87761.0,0.05716]
[1766964808577,0.0113997,87783.0,87761.0,0.05716]
[1766964809572,0.19987009,87790.0,87761.0,0.0685625]
[1766964809573,0.0113991,87788.0,87761.0,0.0685625]
[1766964809969,0.0113995,87785.0,87761.0,0.0685625]
[1766964811676,0.0113995,87785.0,87761.0,0.05716]
[1766964811980,0.19987009,87790.0,87761.0,0.05716]
[1766964813284,0.0113998,87783.0,87761.0,0.05716]
[1766964814588,0.0114001,87780.0,87761.0,0.05716]
[1766964814980,0.0114001,87780.0,87760.0,0.10295009]
[1766964814981,0.0114006,87776.0,87760.0,0.10295009]
[1766964815288,0.0114006,87776.0,87762.0,0.05712]
[1766964818085,0.11435029,87780.0,87762.0,0.05712]
[1766964818287,0.0114002,87780.0,87762.0,0.05712]
[1766964823889,0.11435029,87780.0,87762.0,0.05712]
[1766964827385,0.10295009,87780.0,87762.0,0.05712]
[1766964827692,0.0113999,87781.0,87762.0,0.05712]
[1766964833199,0.05712,87782.0,87765.0,0.011402]
[1766964834489,0.0113992,87787.0,87770.0,0.10295009]
[1766964834690,0.25699009,87790.0,87770.0,0.10295009]
[1766964834997,0.0113991,87788.0,87771.0,0.00017091]
[1766964835386,0.0113993,87786.0,87771.0,0.00017091]
[1766964837292,0.25699009,87790.0,87771.0,0.00017091]
[1766964838802,0.15404,87790.0,87771.0,0.00017091]
[1766964840603,0.011399,87789.0,87771.0,0.00017091]
[1766964842402,0.0113993,87787.0,87771.0,0.00017091]
[1766964842698,0.0113995,87785.0,87771.0,0.00017091]
[1766964843093,0.011399,87788.0,87771.0,0.00017091]
[1766964850402,0.06151833,87797.0,87778.0,0.10295009]
[1766964850709,0.05712,87797.0,87787.0,0.10295009]
[1766964851210,0.05712,87797.0,87779.0,0.0114001]
[1766964851510,0.05712,87797.0,87778.0,0.16007009]
[1766964851511,0.0685179,87797.0,87778.0,0.16007009]
[1766964854108,0.0685179,87797.0,87778.0,0.05712]
[1766964854308,0.0113979,87797.0,87787.0,0.10295009]
[1766964855407,0.00227784,87803.0,87787.0,0.10295009]
[1766964855611,0.0113974,87801.0,87790.0,0.10295009]
[1766964856414,0.00227784,87803.0,87790.0,0.10295009]
[1766964857807,0.0113972,87802.0,87790.0,0.10295009]
[1766964862617,0.00227784,87803.0,87790.0,0.10295009]
[1766964862862,0.01309876,87823.0,87793.0,0.20590018]
[1766964863113,0.0113946,87822.0,87810.0,0.10295009]
[1766964863509,0.15404,87826.0,87810.0,0.10295009]
[1766964863708,0.15404,87826.0,87816.0,0.10295009]
[1766964864008,0.15404,87826.0,87810.0,0.10295009]
[1766964864402,0.15404,87826.0,87816.0,0.10295009]
[1766964864605,0.15404,87826.0,87806.0,0.05712]
[1766964864606,0.15404,87826.0,87810.0,0.10295009]
[1766964865006,0.15281009,87826.0,87810.0,0.10295009]
[1766964865910,0.15281009,87826.0,87816.0,0.10295009]
[1766964866109,0.15281009,87826.0,87813.0,0.05712]
[1766964867511,0.011394,87827.0,87813.0,0.05712]
[1766964867912,0.0113944,87824.0,87813.0,0.05712]
[1766964877823,0.05939706,87833.0,87799.0,0.00017091]
[1766964878031,0.0113964,87808.0,87800.0,0.15072]
[1766964878224,0.0113964,87808.0,87799.0,0.00017091]
[1766964879125,0.01309974,87819.0,87799.0,0.00017091]
[1766964879316,0.0113958,87813.0,87799.0,0.00017091]
[1766964880425,0.0113963,87810.0,87799.0,0.00017091]
[1766964881316,0.01309974,87819.0,87792.0,0.05712]
[1766964881317,0.0113965,87807.0,87792.0,0.05712]
[1766964882520,0.00017057,87808.0,87792.0,0.05712]
[1766964882720,0.01156697,87808.0,87792.0,0.05712]
[1766964882926,0.01156697,87808.0,87791.0,0.00017081]
[1766964887048,0.00017057,87808.0,87791.0,0.00017081]
[1766964891023,0.06151833,87826.0,87791.0,0.00017081]
[1766964891225,0.0113937,87829.0,87792.0,0.12529436]
[1766964891919,0.0113937,87829.0,87804.0,0.0113969]
[1766964892127,0.0113937,87829.0,87805.0,0.154]
[1766964892326,0.0113937,87829.0,87806.0,0.0113966]
[1766964892528,0.0113937,87829.0,87809.0,0.00017081]
[1766964892933,0.09688,87832.0,87809.0,0.00017081]
[1766964893260,0.0113936,87830.0,87809.0,0.00017081]
[1766964894738,0.011394,87827.0,87809.0,0.00017081]
[1766964894938,0.0113943,87825.0,87809.0,0.00017081]
[1766964896045,0.09688,87832.0,87809.0,0.00017081]
[1766964896046,0.0113951,87818.0,87809.0,0.00017081]
[1766964896238,0.0113955,87816.0,87803.0,0.05712]
[1766964896939,0.0113955,87816.0,87791.0,0.0113985]
[1766964897137,0.00017081,87812.0,87795.0,0.00017081]
[1766964899038,0.00017081,87812.0,87795.0,1e-08]
[1766964899039,0.0113972,87803.0,87795.0,1e-08]
[1766964900142,0.0113966,87807.0,87795.0,1e-08]
[1766964900341,0.1653961,87811.0,87795.0,1e-08]
[1766964900644,0.00017081,87812.0,87795.0,1e-08]
[1766964901044,0.00017081,87812.0,87797.0,0.0113977]
[1766964901246,0.0113941,87826.0,87796.0,0.154]
[1766964901548,0.09688,87829.0,87810.0,0.0113961]
[1766964901949,0.00227706,87833.0,87808.0,0.154]
[1766964902137,0.00227706,87833.0,87816.0,0.0113953]
[1766964902337,0.00244786,87833.0,87816.0,0.00017081]
[1766964904849,0.0113933,87832.0,87816.0,0.00017081]
[1766964905650,0.02394471,87831.0,87816.0,0.00017081]
[1766964905845,0.02394471,87830.0,87816.0,0.00017081]
[1766964906044,0.02394471,87829.0,87816.0,0.00017081]
[1766964906345,0.0113933,87832.0,87816.0,0.00017081]
[1766964906546,0.02394228,87831.0,87816.0,0.00017081]
[1766964906745,0.02394228,87830.0,87816.0,0.00017081]
[1766964907050,0.00244786,87833.0,87816.0,0.00017081]
[1766964907246,0.02394221,87832.0,87816.0,0.00017081]
[1766964913645,0.0113934,87831.0,87816.0,0.00017081]
[1766964913847,0.02394221,87830.0,87816.0,0.00017081]
[1766964914045,0.02394221,87829.0,87816.0,0.00017081]
[1766964914250,0.00244786,87833.0,87816.0,0.00017081]
[1766964914251,0.02393481,87828.0,87816.0,0.00017081]
[1766964914455,0.00244786,87833.0,87808.0,0.14936671]
[1766964914646,0.02393486,87832.0,87808.0,0.14936671]
[1766964914848,0.02393486,87831.0,87808.0,0.14936671]
[1766964915152,0.02393486,87830.0,87808.0,0.14936671]
[1766964915350,0.02393486,87829.0,87811.0,0.0113959]
[1766964915551,0.02393486,87828.0,87811.0,0.0113959]
[1766964915751,0.0113934,87832.0,87811.0,0.0113959]
[1766964915950,0.02393639,87831.0,87811.0,0.0113959]
[1766964916162,0.02393639,87830.0,87811.0,0.0113959]
[1766964916451,0.02393639,87829.0,87811.0,0.0113959]
[1766964916661,0.02393639,87828.0,87811.0,0.0113959]
[1766964916860,0.0113934,87832.0,87811.0,0.0113959]
[1766964917152,0.00244786,87833.0,87810.0,0.00017081]
[1766964917153,0.02393824,87831.0,87810.0,0.10300348]
[1766964917349,0.00244786,87833.0,87819.0,0.0113948]
[1766964917549,0.02393976,87832.0,87819.0,0.0113948]
[1766964917850,0.02393976,87831.0,87816.0,0.0113953]
[1766964918046,0.00244786,87833.0,87816.0,0.0113953]
[1766964918256,0.0239397,87832.0,87816.0,0.0113953]
[1766964918563,0.0239397,87831.0,87816.0,0.0113953]
[1766964918761,0.00244786,87833.0,87816.0,0.0113953]
[1766964918959,0.02394177,87832.0,87816.0,0.0113953]
[1766964919159,0.02394177,87831.0,87816.0,0.0113953]
[1766964919359,0.00244786,87833.0,87816.0,0.0113953]
[1766964919662,0.0239444,87832.0,87816.0,0.0113953]
[1766964919957,0.0239444,87831.0,87816.0,0.0113953]
[1766964920158,0.00244786,87833.0,87816.0,0.0113953]
[1766964920359,0.02394806,87832.0,87816.0,0.0113953]
[1766964920544,0.02394806,87831.0,87816.0,0.0113953]
[1766964920744,0.02394806,87830.0,87816.0,0.0113953]
[1766964920950,0.00244786,87833.0,87816.0,0.0113953]
[1766964921145,0.02394794,87832.0,87816.0,0.0113953]
[1766964921363,0.02394794,87831.0,87816.0,0.0113953]
[1766964921549,0.02394794,87830.0,87816.0,0.0113953]
[1766964921757,0.00244786,87833.0,87816.0,0.0113953]
[1766964921957,0.02394883,87832.0,87816.0,0.0113953]
[1766964922149,0.00244786,87833.0,87816.0,0.0113953]
[1766964922150,0.02394883,87831.0,87816.0,0.0113953]
[1766964922347,0.02394883,87830.0,87816.0,0.0113953]
[1766964922558,0.00244786,87833.0,87816.0,0.0113953]
[1766964922760,0.02395002,87832.0,87816.0,0.0113953]
[1766964922959,0.02395002,87831.0,87816.0,0.0113953]
[1766964923262,0.02395002,87830.0,87816.0,0.0113953]
[1766964923466,0.00244786,87833.0,87816.0,0.0113953]
[1766964923663,0.02394629,87832.0,87816.0,0.0113953]
[1766964923859,0.02394629,87831.0,87816.0,0.0113953]
[1766964924067,0.02394629,87830.0,87816.0,0.0113953]
[1766964924364,0.00244786,87833.0,87816.0,0.0113953]
[1766964924558,0.02394662,87832.0,87816.0,0.0113953]
[1766964924749,0.00244786,87833.0,87816.0,0.0113953]
[1766964925061,0.02394163,87832.0,87821.0,0.0113947]
[1766964925260,0.00244786,87833.0,87821.0,0.0113947]
[1766964925454,0.02394033,87832.0,87818.0,0.154]
[1766964925654,0.00244786,87833.0,87818.0,0.154]
[1766964925855,0.02393912,87832.0,87818.0,0.154]
[1766964926154,0.00244786,87833.0,87818.0,0.154]
[1766964926354,0.02394055,87832.0,87818.0,0.154]
[1766964926555,0.00244786,87833.0,87820.0,0.1028143]
[1766964926754,0.0239388,87832.0,87820.0,0.1028143]
[1766964926951,0.00244786,87833.0,87820.0,0.1028143]
[1766964927155,0.02393905,87832.0,87820.0,0.1028143]
[1766964927368,0.00244786,87833.0,87820.0,0.1028143]
[1766964927557,0.02394223,87832.0,87820.0,0.1028143]
[1766964927755,0.02394223,87831.0,87820.0,0.1028143]
[1766964927957,0.00244786,87833.0,87820.0,0.1028143]
[1766964928159,0.02394225,87832.0,87820.0,0.1028143]
[1766964928470,0.02394225,87831.0,87820.0,0.1028143]
[1766964928765,0.00244786,87833.0,87820.0,0.1028143]
[1766964928967,0.02394583,87832.0,87820.0,0.1028143]
[1766964929266,0.02394583,87831.0,87820.0,0.1028143]
[1766964929463,0.02394583,87830.0,87820.0,0.1028143]
[1766964929664,0.02394583,87829.0,87820.0,0.1028143]
[1766964929968,0.00244786,87833.0,87820.0,0.1028143]
[1766964930167,0.02396607,87832.0,87820.0,0.1028143]
[1766964930467,0.02396607,87831.0,87820.0,0.1028143]
[1766964930764,0.02396607,87830.0,87820.0,0.1028143]
[1766964930964,0.02396607,87829.0,87820.0,0.1028143]
[1766964931165,0.00244786,87833.0,87820.0,0.1028143]
[1766964931368,0.0239652,87832.0,87820.0,0.1028143]
[1766964931565,0.0239652,87831.0,87820.0,0.1028143]
[1766964931771,0.0239652,87830.0,87820.0,0.1028143]
[1766964931958,0.0239652,87829.0,87820.0,0.1028143]
[1766964932155,0.0239652,87828.0,87820.0,0.1028143]
[1766964932461,0.00244786,87833.0,87820.0,0.1028143]
[1766964932663,0.02396993,87832.0,87820.0,0.1028143]
[1766964932862,0.02396993,87831.0,87820.0,0.1028143]
[1766964933165,0.02396993,87830.0,87820.0,0.1028143]
[1766964933362,0.02396993,87829.0,87820.0,0.1028143]
[1766964933671,0.00244786,87833.0,87820.0,0.1028143]
[1766964933963,0.02396919,87832.0,87820.0,0.1028143]
[1766964934168,0.02396919,87831.0,87820.0,0.1028143]
[1766964934368,0.02396919,87830.0,87820.0,0.1028143]
[1766964934568,0.02396919,87829.0,87820.0,0.1028143]
[1766964934770,0.00244786,87833.0,87820.0,0.1028143]
[1766964934973,0.02396818,87832.0,87820.0,0.1028143]
[1766964935163,0.02396818,87831.0,87820.0,0.1028143]
[1766964935462,0.02396818,87830.0,87820.0,0.1028143]
[1766964935662,0.02396818,87829.0,87820.0,0.1028143]
[1766964935873,0.00244786,87833.0,87820.0,0.1028143]
[1766964936169,0.0239004,87832.0,87820.0,0.1028143]
[1766964936369,0.0239004,87831.0,87820.0,0.1028143]
[1766964936570,0.0239004,87830.0,87820.0,0.1028143]
[1766964936771,0.0239004,87829.0,87820.0,0.1028143]
[1766964936963,0.00244786,87833.0,87820.0,0.1028143]
[1766964937160,0.02389391,87832.0,87820.0,0.1028143]
[1766964937469,0.02389391,87831.0,87820.0,0.1028143]
[1766964937672,0.02389391,87830.0,87820.0,0.1028143]
[1766964937871,0.00244786,87833.0,87820.0,0.1028143]
[1766964938066,0.02388411,87832.0,87820.0,0.1028143]
[1766964938364,0.02388411,87831.0,87820.0,0.1028143]
[1766964938564,0.02388411,87830.0,87820.0,0.1028143]
[1766964938764,0.00244786,87833.0,87820.0,0.1028143]
[1766964938967,0.02388058,87832.0,87820.0,0.1028143]
[1766964939163,0.02388058,87831.0,87820.0,0.1028143]
[1766964939371,0.02388058,87830.0,87820.0,0.1028143]
[1766964939572,0.00244786,87833.0,87820.0,0.1028143]
[1766964939871,0.02388113,87832.0,87820.0,0.1028143]
[1766964940075,0.02388113,87831.0,87820.0,0.1028143]
[1766964940271,0.02388113,87830.0,87820.0,0.1028143]
[1766964940475,0.00244786,87833.0,87820.0,0.1028143]
[1766964940775,0.02388141,87832.0,87820.0,0.1028143]
[1766964940968,0.02388141,87831.0,87818.0,0.165395]
[1766964941172,0.02388141,87830.0,87820.0,0.1028143]
[1766964941474,0.00244786,87833.0,87820.0,0.1028143]
[1766964941662,0.02388189,87832.0,87820.0,0.1028143]
[1766964941863,0.02388189,87831.0,87820.0,0.1028143]
[1766964942071,0.02388189,87830.0,87820.0,0.1028143]
[1766964942273,0.00244786,87833.0,87820.0,0.1028143]
[1766964942471,0.02388269,87832.0,87820.0,0.1028143]
[1766964942668,0.0001708,87833.0,87820.0,0.1028143]
[1766964942869,0.0113928,87836.0,87820.0,0.1028143]
[1766964944174,0.0113928,87836.0,87818.0,0.165395]
[1766964944476,0.0113928,87836.0,87820.0,0.1028143]
[1766964944777,0.1028143,87830.0,87818.0,0.154]
[1766964944974,0.1028143,87830.0,87812.0,0.0113958]
[1766964945172,0.0113932,87833.0,87813.0,0.15396]
[1766964945367,0.0113932,87833.0,87814.0,0.0113956]
[1766964947875,0.0113932,87833.0,87820.0,0.1028143]
[1766964948081,0.0113932,87833.0,87821.0,0.05708]
[1766964948373,0.01156361,87837.0,87821.0,0.05708]
[1766964950073,0.0113932,87833.0,87821.0,0.05708]
[1766964951479,0.0113936,87830.0,87810.0,0.04119295]
[1766964951674,0.1142079,87830.0,87811.0,0.15396]
[1766964952702,0.011394,87827.0,87811.0,0.15396]
[1766964955085,0.1028143,87830.0,87811.0,0.15396]
[1766964955276,0.02432462,87829.0,87811.0,0.15396]
[1766964955583,0.02432462,87828.0,87811.0,0.15396]
[1766964955882,0.0113938,87828.0,87811.0,0.15396]
[1766964959782,0.1028143,87830.0,87811.0,0.15396]
[1766964959978,0.02433315,87829.0,87820.0,0.1028143]
[1766964960183,0.09688,87835.0,87817.0,0.05708]
[1766964960384,0.0243327,87834.0,87817.0,0.05708]
[1766964960578,0.0243327,87833.0,87817.0,0.05708]
[1766964960890,0.0243327,87832.0,87817.0,0.05708]
[1766964961080,0.0243327,87831.0,87817.0,0.05708]
[1766964961280,0.0243327,87830.0,87817.0,0.05708]
[1766964961481,0.02433478,87829.0,87817.0,0.05708]
[1766964961690,0.02433508,87828.0,87817.0,0.05708]